[Event "Titled Tuesday Blitz July 11 Early 2023"]
[White "Keymer, Vincent"]
[Black "Suleymanli, Suleyman"]
[WhiteFideId "12940690"]
[BlackFideId "13416375"]
[WhiteElo "2922"]
[BlackElo "2734"]
[Result "1-0"]
[Round "8"]
[TimeControl "180+2"]
[Date "2023.07.11"]
[WhiteClock "0:00:18"]
[BlackClock "0:00:00"]
[Board "15"]

1. a3 {[%clk 0:03:00]}  d5 {[%clk 0:02:58]} 2. Nf3 {[%clk 0:03:00]}  c5 {[%clk 0:02:56]} 3. b4 {[%clk 0:03:00]}  cxb4 {[%clk 0:02:54]} 4. axb4 {[%clk 0:03:00]}  Nf6 {[%clk 0:02:55]} 5. e3 {[%clk 0:02:59]}  e6 {[%clk 0:02:56]} 6. b5 {[%clk 0:02:58]}  Bd6 {[%clk 0:02:55]} 7. Bb2 {[%clk 0:02:58]}  O-O {[%clk 0:02:56]} 8. c4 {[%clk 0:02:55]}  dxc4 {[%clk 0:02:55]} 9. Bxc4 {[%clk 0:02:55]}  Nbd7 {[%clk 0:02:55]} 10. O-O {[%clk 0:02:52]}  b6 {[%clk 0:02:56]} 11. Be2 {[%clk 0:02:34]}  Bb7 {[%clk 0:02:56]} 12. d3 {[%clk 0:02:32]}  a6 {[%clk 0:02:53]} 13. Nc3 {[%clk 0:02:28]}  a5 {[%clk 0:02:50]} 14. Nd4 {[%clk 0:02:14]}  Rc8 {[%clk 0:02:48]} 15. h3 {[%clk 0:02:09]}  Nc5 {[%clk 0:02:35]} 16. Nc6 {[%clk 0:01:53]}  Bxc6 {[%clk 0:02:34]} 17. bxc6 {[%clk 0:01:54]}  Rxc6 {[%clk 0:02:35]} 18. d4 {[%clk 0:01:47]}  Ncd7 {[%clk 0:02:25]} 19. e4 {[%clk 0:01:37]}  Bb4 {[%clk 0:02:21]} 20. Nb5 {[%clk 0:01:21]}  Nxe4 {[%clk 0:02:17]} 21. d5 {[%clk 0:01:21]}  exd5 {[%clk 0:01:54]} 22. Qxd5 {[%clk 0:01:19]}  Re6 {[%clk 0:01:55]} 23. Bg4 {[%clk 0:01:11]}  Re7 {[%clk 0:01:35]} 24. Rad1 {[%clk 0:01:09]}  Nec5 {[%clk 0:01:20]} 25. Nd4 {[%clk 0:00:44]}  Re5 {[%clk 0:00:47]} 26. Qf3 {[%clk 0:00:43]}  h5 {[%clk 0:00:27]} 27. Bxd7 {[%clk 0:00:32]}  Nxd7 {[%clk 0:00:17]} 28. Nc6 {[%clk 0:00:32]}  Qf6 {[%clk 0:00:12]} 29. Qxf6 {[%clk 0:00:24]}  gxf6 {[%clk 0:00:08]} 30. Rxd7 {[%clk 0:00:25]}  Re6 {[%clk 0:00:06]} 31. Nxb4 {[%clk 0:00:25]}  axb4 {[%clk 0:00:06]} 32. Rd4 {[%clk 0:00:26]}  Rc8 {[%clk 0:00:05]} 33. Rxb4 {[%clk 0:00:26]}  Rc2 {[%clk 0:00:05]} 34. g3 {[%clk 0:00:25]}  Kg7 {[%clk 0:00:04]} 35. Bd4 {[%clk 0:00:24]}  Rcc6 {[%clk 0:00:04]} 36. Be3 {[%clk 0:00:23]}  Kg6 {[%clk 0:00:02]} 37. Rfb1 {[%clk 0:00:23]}  Rcd6 {[%clk 0:00:01]} 38. Rxb6 {[%clk 0:00:23]}  Rxb6 {[%clk 0:00:02]} 39. Rxb6 {[%clk 0:00:23]}  Re5 {[%clk 0:00:03]} 40. Kg2 {[%clk 0:00:22]}  Rf5 {[%clk 0:00:03]} 41. Bd4 {[%clk 0:00:20]}  Kg5 {[%clk 0:00:03]} 42. f4+ {[%clk 0:00:20]}  Kg6 {[%clk 0:00:04]} 43. Kf3 {[%clk 0:00:20]}  Rd5 {[%clk 0:00:00]} 44. Ke4 {[%clk 0:00:18]} 1-0


[Site "https://www.chess.com"]

[Event "Titled Tuesday Blitz July 11 Early 2023"]
[White "Svane, Rasmus"]
[Black "Jarovinsky, Alexey"]
[WhiteFideId "4657101"]
[BlackFideId "14115131"]
[WhiteElo "2945"]
[BlackElo "2727"]
[Result "1/2-1/2"]
[Round "8"]
[TimeControl "180+2"]
[Date "2023.07.11"]
[WhiteClock "0:00:11"]
[BlackClock "0:00:04"]
[Board "18"]

1. Nf3 {[%clk 0:03:00]}  g6 {[%clk 0:02:50]} 2. e4 {[%clk 0:03:00]}  Bg7 {[%clk 0:02:51]} 3. d4 {[%clk 0:03:01]}  d6 {[%clk 0:02:49]} 4. Bd3 {[%clk 0:03:01]}  Nc6 {[%clk 0:02:45]} 5. c3 {[%clk 0:02:58]}  e5 {[%clk 0:02:44]} 6. dxe5 {[%clk 0:02:53]}  dxe5 {[%clk 0:02:40]} 7. O-O {[%clk 0:02:53]}  f6 {[%clk 0:02:37]} 8. Bc4 {[%clk 0:02:50]}  Qxd1 {[%clk 0:02:36]} 9. Rxd1 {[%clk 0:02:51]}  Bh6 {[%clk 0:02:33]} 10. Na3 {[%clk 0:02:43]}  a6 {[%clk 0:02:22]} 11. h3 {[%clk 0:02:40]}  Bxc1 {[%clk 0:02:20]} 12. Raxc1 {[%clk 0:02:41]}  Nh6 {[%clk 0:02:10]} 13. Nc2 {[%clk 0:02:39]}  Bd7 {[%clk 0:01:39]} 14. Ne3 {[%clk 0:02:36]}  O-O-O {[%clk 0:01:39]} 15. Nd5 {[%clk 0:02:29]}  Rhf8 {[%clk 0:01:39]} 16. b4 {[%clk 0:02:29]}  Kb8 {[%clk 0:01:29]} 17. Rd2 {[%clk 0:02:23]}  Be6 {[%clk 0:01:24]} 18. Rcd1 {[%clk 0:02:22]}  Bg8 {[%clk 0:01:13]} 19. a4 {[%clk 0:02:20]}  Rd6 {[%clk 0:01:12]} 20. Ne3 {[%clk 0:02:18]}  Rxd2 {[%clk 0:01:02]} 21. Rxd2 {[%clk 0:02:19]}  Rd8 {[%clk 0:00:56]} 22. Rxd8+ {[%clk 0:02:13]}  Nxd8 {[%clk 0:00:57]} 23. Kf1 {[%clk 0:01:53]}  c6 {[%clk 0:00:55]} 24. a5 {[%clk 0:01:51]}  Kc7 {[%clk 0:00:55]} 25. Ke2 {[%clk 0:01:51]}  Bxc4+ {[%clk 0:00:53]} 26. Nxc4 {[%clk 0:01:52]}  Ne6 {[%clk 0:00:52]} 27. Ne1 {[%clk 0:01:50]}  Nf4+ {[%clk 0:00:48]} 28. Ke3 {[%clk 0:01:37]}  Nf7 {[%clk 0:00:48]} 29. h4 {[%clk 0:01:37]}  h5 {[%clk 0:00:45]} 30. g3 {[%clk 0:01:37]}  Ne6 {[%clk 0:00:44]} 31. Nd3 {[%clk 0:01:36]}  Nd6 {[%clk 0:00:42]} 32. Nxd6 {[%clk 0:01:22]}  Kxd6 {[%clk 0:00:43]} 33. f4 {[%clk 0:01:23]}  exf4+ {[%clk 0:00:27]} 34. gxf4 {[%clk 0:01:24]}  f5 {[%clk 0:00:24]} 35. Ne5 {[%clk 0:01:17]}  Nf8 {[%clk 0:00:22]} 36. Nc4+ {[%clk 0:01:11]}  Ke6 {[%clk 0:00:22]} 37. e5 {[%clk 0:01:12]}  Kd5 {[%clk 0:00:16]} 38. Nb6+ {[%clk 0:01:08]}  Ke6 {[%clk 0:00:16]} 39. Kd4 {[%clk 0:01:09]}  Ke7 {[%clk 0:00:14]} 40. Ke3 {[%clk 0:01:05]}  Ne6 {[%clk 0:00:15]} 41. Nc4 {[%clk 0:01:05]}  Kd7 {[%clk 0:00:13]} 42. Nd6 {[%clk 0:01:06]}  Kc7 {[%clk 0:00:12]} 43. c4 {[%clk 0:00:55]}  Nf8 {[%clk 0:00:12]} 44. Nf7 {[%clk 0:00:48]}  Ne6 {[%clk 0:00:12]} 45. Nh8 {[%clk 0:00:42]}  Nf8 {[%clk 0:00:12]} 46. Nf7 {[%clk 0:00:32]}  Ne6 {[%clk 0:00:11]} 47. Nd6 {[%clk 0:00:33]}  Nf8 {[%clk 0:00:11]} 48. Ne8+ {[%clk 0:00:17]}  Kd7 {[%clk 0:00:11]} 49. Nf6+ {[%clk 0:00:18]}  Kc7 {[%clk 0:00:11]} 50. c5 {[%clk 0:00:14]}  Ne6 {[%clk 0:00:10]} 51. Ne8+ {[%clk 0:00:13]}  Kd8 {[%clk 0:00:09]} 52. Nd6 {[%clk 0:00:13]}  Kc7 {[%clk 0:00:09]} 53. Nc4 {[%clk 0:00:14]}  Kd7 {[%clk 0:00:09]} 54. Nb2 {[%clk 0:00:14]}  Kc7 {[%clk 0:00:08]} 55. Nd1 {[%clk 0:00:14]}  Kd7 {[%clk 0:00:08]} 56. Nc3 {[%clk 0:00:15]}  Kc7 {[%clk 0:00:08]} 57. Ne2 {[%clk 0:00:15]}  Kd7 {[%clk 0:00:09]} 58. Kd3 {[%clk 0:00:12]}  Kc7 {[%clk 0:00:08]} 59. Ke3 {[%clk 0:00:12]}  Kd7 {[%clk 0:00:08]} 60. Kf3 {[%clk 0:00:13]}  Kc7 {[%clk 0:00:08]} 61. Nc1 {[%clk 0:00:12]}  Kd7 {[%clk 0:00:09]} 62. Nb3 {[%clk 0:00:13]}  Kc7 {[%clk 0:00:09]} 63. Ke3 {[%clk 0:00:13]}  Kd7 {[%clk 0:00:09]} 64. Nd2 {[%clk 0:00:14]}  Kc7 {[%clk 0:00:09]} 65. Nc4 {[%clk 0:00:14]}  Nf8 {[%clk 0:00:09]} 66. Nd6 {[%clk 0:00:11]}  Ne6 {[%clk 0:00:09]} 67. Kf3 {[%clk 0:00:10]}  Nd4+ {[%clk 0:00:09]} 68. Kf2 {[%clk 0:00:10]}  Ne6 {[%clk 0:00:09]} 69. Ke3 {[%clk 0:00:10]}  Nf8 {[%clk 0:00:09]} 70. Nf7 {[%clk 0:00:09]}  Ne6 {[%clk 0:00:08]} 71. Kf3 {[%clk 0:00:09]}  Nf8 {[%clk 0:00:08]} 72. e6 {[%clk 0:00:10]}  Nxe6 {[%clk 0:00:07]} 73. Ne5 {[%clk 0:00:11]}  Nf8 {[%clk 0:00:07]} 74. Ke3 {[%clk 0:00:11]}  Kd8 {[%clk 0:00:07]} 75. Nc4 {[%clk 0:00:11]}  Ne6 {[%clk 0:00:05]} 76. Nd6 {[%clk 0:00:11]}  Kc7 {[%clk 0:00:05]} 77. Kf3 {[%clk 0:00:12]}  Kb8 {[%clk 0:00:05]} 78. Nf7 {[%clk 0:00:11]}  Kc7 {[%clk 0:00:05]} 79. Ne5 {[%clk 0:00:12]}  Nf8 {[%clk 0:00:05]} 80. Ke3 {[%clk 0:00:12]}  Kd8 {[%clk 0:00:04]} 81. Kd3 {[%clk 0:00:11]}  Kc7 {[%clk 0:00:04]} 82. Kc3 {[%clk 0:00:11]}  Kd8 {[%clk 0:00:04]} 83. Kd2 {[%clk 0:00:10]}  Kc7 {[%clk 0:00:04]} 84. Ke3 {[%clk 0:00:11]} 1/2-1/2


[Site "https://www.chess.com"]

[Event "Titled Tuesday Blitz July 11 Early 2023"]
[White "De La Villa Garcia, Jesus Maria"]
[Black "Ibarra Jerez, Jose Carlos"]
[WhiteFideId "2200040"]
[BlackFideId "2226332"]
[WhiteElo "2717"]
[BlackElo "2909"]
[Result "0-1"]
[Round "8"]
[TimeControl "180+2"]
[Date "2023.07.11"]
[WhiteClock "0:00:00"]
[BlackClock "0:00:26"]
[Board "19"]

1. c4 {[%clk 0:00:18]}  e5 {[%clk 0:02:54]} 2. g3 {[%clk 0:00:17]}  Nf6 {[%clk 0:02:54]} 3. Bg2 {[%clk 0:00:18]}  c6 {[%clk 0:02:55]} 4. d4 {[%clk 0:00:15]}  e4 {[%clk 0:02:56]} 5. d5 {[%clk 0:00:15]}  Bb4+ {[%clk 0:02:48]} 6. Bd2 {[%clk 0:00:14]}  Qe7 {[%clk 0:02:48]} 7. Nc3 {[%clk 0:00:14]}  O-O {[%clk 0:02:42]} 8. Nh3 {[%clk 0:00:13]}  cxd5 {[%clk 0:02:34]} 9. cxd5 {[%clk 0:00:13]}  d6 {[%clk 0:02:28]} 10. Nxe4 {[%clk 0:00:12]}  Bxh3 {[%clk 0:01:56]} 11. Nxf6+ {[%clk 0:00:10]}  Qxf6 {[%clk 0:01:57]} 12. Bxh3 {[%clk 0:00:10]}  Qxb2 {[%clk 0:01:54]} 13. Bxb4 {[%clk 0:00:10]}  Qxb4+ {[%clk 0:01:55]} 14. Qd2 {[%clk 0:00:09]}  Na6 {[%clk 0:01:40]} 15. Qxb4 {[%clk 0:00:07]}  Nxb4 {[%clk 0:01:41]} 16. Rb1 {[%clk 0:00:06]}  Nxd5 {[%clk 0:01:32]} 17. Rxb7 {[%clk 0:00:06]}  Rab8 {[%clk 0:01:24]} 18. Rxb8 {[%clk 0:00:06]}  Rxb8 {[%clk 0:01:25]} 19. O-O {[%clk 0:00:06]}  Nc3 {[%clk 0:01:24]} 20. Re1 {[%clk 0:00:03]}  Rb2 {[%clk 0:01:17]} 21. e3 {[%clk 0:00:03]}  Rxa2 {[%clk 0:01:11]} 22. Bf1 {[%clk 0:00:04]}  Ne4 {[%clk 0:01:08]} 23. Rc1 {[%clk 0:00:03]}  g6 {[%clk 0:00:41]} 24. Rc7 {[%clk 0:00:02]}  d5 {[%clk 0:00:41]} 25. Bg2 {[%clk 0:00:01]}  Ra1+ {[%clk 0:00:40]} 26. Bf1 {[%clk 0:00:02]}  Nd2 {[%clk 0:00:41]} 27. Kg2 {[%clk 0:00:03]}  Rxf1 {[%clk 0:00:35]} 28. Rxa7 {[%clk 0:00:03]}  Rd1 {[%clk 0:00:35]} 29. Ra8+ {[%clk 0:00:02]}  Kg7 {[%clk 0:00:34]} 30. Rd8 {[%clk 0:00:03]}  Ne4 {[%clk 0:00:34]} 31. f3 {[%clk 0:00:02]}  Rd2+ {[%clk 0:00:34]} 32. Kh3 {[%clk 0:00:02]}  Ng5+ {[%clk 0:00:33]} 33. Kg4 {[%clk 0:00:03]}  Ne6 {[%clk 0:00:34]} 34. Rd7 {[%clk 0:00:02]}  h5+ {[%clk 0:00:32]} 35. Kh3 {[%clk 0:00:01]}  Ng5+ {[%clk 0:00:25]} 36. Kh4 {[%clk 0:00:00]}  Nxf3+ {[%clk 0:00:26]} 0-1


[Site "https://www.chess.com"]

[Event "Titled Tuesday Blitz July 11 Early 2023"]
[White "Antipov, Mikhail Al."]
[Black "NikaVolkov"]
[WhiteFideId "4107012"]
[WhiteElo "2889"]
[BlackElo "2706"]
[Result "1/2-1/2"]
[Round "8"]
[TimeControl "180+2"]
[Date "2023.07.11"]
[WhiteClock "0:00:06"]
[BlackClock "0:00:03"]
[Board "21"]

1. e4 {[%clk 0:02:30]}  c5 {[%clk 0:03:00]} 2. Nf3 {[%clk 0:02:30]}  e6 {[%clk 0:03:00]} 3. b3 {[%clk 0:02:27]}  d5 {[%clk 0:03:01]} 4. Bb5+ {[%clk 0:02:26]}  Bd7 {[%clk 0:03:00]} 5. Bxd7+ {[%clk 0:02:25]}  Nxd7 {[%clk 0:03:01]} 6. exd5 {[%clk 0:02:26]}  exd5 {[%clk 0:03:02]} 7. O-O {[%clk 0:02:27]}  Ngf6 {[%clk 0:03:02]} 8. Re1+ {[%clk 0:02:27]}  Be7 {[%clk 0:03:02]} 9. Qe2 {[%clk 0:02:28]}  Rc8 {[%clk 0:02:57]} 10. Ba3 {[%clk 0:02:27]}  Rc6 {[%clk 0:02:58]} 11. Nd4 {[%clk 0:02:27]}  cxd4 {[%clk 0:02:03]} 12. Bxe7 {[%clk 0:02:28]}  Qc8 {[%clk 0:02:02]} 13. Bxf6+ {[%clk 0:01:57]}  Re6 {[%clk 0:02:02]} 14. Bxg7 {[%clk 0:01:58]}  Rxe2 {[%clk 0:02:01]} 15. Rxe2+ {[%clk 0:01:59]}  Kd8 {[%clk 0:02:01]} 16. Bxh8 {[%clk 0:01:59]}  Qxc2 {[%clk 0:02:02]} 17. Na3 {[%clk 0:01:21]}  Qb2 {[%clk 0:01:57]} 18. Rae1 {[%clk 0:01:20]}  Qxa3 {[%clk 0:01:58]} 19. Bxd4 {[%clk 0:01:02]}  Qxa2 {[%clk 0:01:55]} 20. h3 {[%clk 0:00:59]}  Qxb3 {[%clk 0:01:54]} 21. Re8+ {[%clk 0:00:41]}  Kc7 {[%clk 0:01:54]} 22. Rc1+ {[%clk 0:00:42]}  Kd6 {[%clk 0:01:53]} 23. Bxa7 {[%clk 0:00:43]}  Qb2 {[%clk 0:01:46]} 24. Ree1 {[%clk 0:00:26]}  b6 {[%clk 0:01:34]} 25. Rb1 {[%clk 0:00:25]}  Qxd2 {[%clk 0:01:34]} 26. Bxb6 {[%clk 0:00:24]}  Nxb6 {[%clk 0:01:33]} 27. Rxb6+ {[%clk 0:00:25]}  Kc5 {[%clk 0:01:31]} 28. Reb1 {[%clk 0:00:21]}  d4 {[%clk 0:01:29]} 29. Rf6 {[%clk 0:00:19]}  d3 {[%clk 0:01:24]} 30. Rxf7 {[%clk 0:00:19]}  Qe2 {[%clk 0:01:17]} 31. Rc1+ {[%clk 0:00:17]}  Kd6 {[%clk 0:01:17]} 32. Rf6+ {[%clk 0:00:14]}  Ke5 {[%clk 0:01:14]} 33. Rf8 {[%clk 0:00:13]}  d2 {[%clk 0:01:12]} 34. Re8+ {[%clk 0:00:13]}  Kd6 {[%clk 0:01:09]} 35. Rd8+ {[%clk 0:00:10]}  Ke7 {[%clk 0:01:08]} 36. Rxd2 {[%clk 0:00:10]}  Qxd2 {[%clk 0:01:08]} 37. Rf1 {[%clk 0:00:08]}  Kf6 {[%clk 0:01:09]} 38. g3 {[%clk 0:00:08]}  Qd5 {[%clk 0:01:08]} 39. Re1 {[%clk 0:00:08]}  Qh5 {[%clk 0:01:05]} 40. Kg2 {[%clk 0:00:08]}  Qd5+ {[%clk 0:01:05]} 41. Kg1 {[%clk 0:00:08]}  Qd7 {[%clk 0:01:05]} 42. Kg2 {[%clk 0:00:08]}  Qd2 {[%clk 0:01:05]} 43. Re3 {[%clk 0:00:08]}  Qd5+ {[%clk 0:01:06]} 44. Kh2 {[%clk 0:00:07]}  h5 {[%clk 0:01:03]} 45. h4 {[%clk 0:00:07]}  Kf5 {[%clk 0:01:00]} 46. g4+ {[%clk 0:00:05]}  hxg4 {[%clk 0:00:54]} 47. h5 {[%clk 0:00:05]}  Kg5 {[%clk 0:00:53]} 48. Kg1 {[%clk 0:00:05]}  Kxh5 {[%clk 0:00:53]} 49. Rg3 {[%clk 0:00:05]}  Kg5 {[%clk 0:00:52]} 50. Re3 {[%clk 0:00:06]}  Kf4 {[%clk 0:00:52]} 51. Rg3 {[%clk 0:00:06]}  Qd1+ {[%clk 0:00:52]} 52. Kg2 {[%clk 0:00:06]}  Qd5+ {[%clk 0:00:51]} 53. Kg1 {[%clk 0:00:06]}  Qh5 {[%clk 0:00:50]} 54. Kg2 {[%clk 0:00:06]}  Qh8 {[%clk 0:00:46]} 55. Kg1 {[%clk 0:00:06]}  Qa1+ {[%clk 0:00:46]} 56. Kg2 {[%clk 0:00:07]}  Qc1 {[%clk 0:00:47]} 57. Re3 {[%clk 0:00:06]}  Qc6+ {[%clk 0:00:46]} 58. Kg1 {[%clk 0:00:06]}  Qc5 {[%clk 0:00:43]} 59. Rg3 {[%clk 0:00:06]}  Qd5 {[%clk 0:00:43]} 60. Re3 {[%clk 0:00:06]}  Qd7 {[%clk 0:00:31]} 61. Kg2 {[%clk 0:00:06]}  Qc6+ {[%clk 0:00:31]} 62. Kg1 {[%clk 0:00:07]}  Qc1+ {[%clk 0:00:31]} 63. Kg2 {[%clk 0:00:07]}  Qd1 {[%clk 0:00:32]} 64. Rg3 {[%clk 0:00:07]}  Ke4 {[%clk 0:00:32]} 65. Re3+ {[%clk 0:00:07]}  Kd4 {[%clk 0:00:33]} 66. Rg3 {[%clk 0:00:08]}  Kc4 {[%clk 0:00:28]} 67. Re3 {[%clk 0:00:08]}  Qd5+ {[%clk 0:00:28]} 68. Kg1 {[%clk 0:00:08]}  Kd4 {[%clk 0:00:07]} 69. Rg3 {[%clk 0:00:08]}  Qe4 {[%clk 0:00:05]} 70. Re3 {[%clk 0:00:07]}  Qa8 {[%clk 0:00:05]} 71. Rg3 {[%clk 0:00:06]}  Qa1+ {[%clk 0:00:04]} 72. Kg2 {[%clk 0:00:07]}  Qd1 {[%clk 0:00:05]} 73. Re3 {[%clk 0:00:07]}  Kc4 {[%clk 0:00:06]} 74. Rg3 {[%clk 0:00:06]}  Qd5+ {[%clk 0:00:06]} 75. Kg1 {[%clk 0:00:06]}  Qe4 {[%clk 0:00:06]} 76. Re3 {[%clk 0:00:06]}  Qb1+ {[%clk 0:00:06]} 77. Kg2 {[%clk 0:00:06]}  Kd4 {[%clk 0:00:07]} 78. Rg3 {[%clk 0:00:05]}  Qd1 {[%clk 0:00:08]} 79. Re3 {[%clk 0:00:05]}  Kc4 {[%clk 0:00:07]} 80. Rg3 {[%clk 0:00:05]}  Qd5+ {[%clk 0:00:08]} 81. Kg1 {[%clk 0:00:05]}  Qe4 {[%clk 0:00:02]} 82. Ra3 {[%clk 0:00:04]}  Qe1+ {[%clk 0:00:01]} 83. Kg2 {[%clk 0:00:04]}  Qe4+ {[%clk 0:00:02]} 84. Kg1 {[%clk 0:00:04]}  Kb4 {[%clk 0:00:02]} 85. Re3 {[%clk 0:00:04]}  Qxe3 {[%clk 0:00:01]} 86. fxe3 {[%clk 0:00:04]}  Kc4 {[%clk 0:00:02]} 87. Kf2 {[%clk 0:00:04]}  Kd3 {[%clk 0:00:03]} 88. Kg3 {[%clk 0:00:05]}  Kxe3 {[%clk 0:00:03]} 89. Kxg4 {[%clk 0:00:06]} 1/2-1/2


[Site "https://www.chess.com"]

[Event "Titled Tuesday Blitz July 11 Early 2023"]
[White "Zhigalko, Sergei"]
[Black "djokovic74"]
[WhiteFideId "13502956"]
[WhiteElo "2877"]
[BlackElo "2707"]
[Result "1-0"]
[Round "8"]
[TimeControl "180+2"]
[Date "2023.07.11"]
[WhiteClock "0:00:08"]
[BlackClock "0:00:06"]
[Board "22"]

1. e4 {[%clk 0:03:00]}  e6 {[%clk 0:02:59]} 2. d4 {[%clk 0:03:01]}  d5 {[%clk 0:02:59]} 3. e5 {[%clk 0:03:01]}  c5 {[%clk 0:02:59]} 4. c3 {[%clk 0:03:02]}  Nc6 {[%clk 0:03:00]} 5. Nf3 {[%clk 0:03:02]}  Qb6 {[%clk 0:02:59]} 6. Bd3 {[%clk 0:03:03]}  cxd4 {[%clk 0:02:57]} 7. O-O {[%clk 0:03:03]}  Bd7 {[%clk 0:02:57]} 8. Re1 {[%clk 0:03:03]}  Nge7 {[%clk 0:02:53]} 9. h4 {[%clk 0:03:03]}  h6 {[%clk 0:02:53]} 10. h5 {[%clk 0:03:03]}  a6 {[%clk 0:02:47]} 11. a3 {[%clk 0:03:02]}  Rc8 {[%clk 0:02:47]} 12. b4 {[%clk 0:03:03]}  dxc3 {[%clk 0:02:41]} 13. Nxc3 {[%clk 0:03:04]}  Nxb4 {[%clk 0:02:39]} 14. Na4 {[%clk 0:03:04]}  Bxa4 {[%clk 0:02:37]} 15. Qxa4+ {[%clk 0:03:05]}  Nbc6 {[%clk 0:02:37]} 16. Bd2 {[%clk 0:02:56]}  Qc7 {[%clk 0:02:27]} 17. Rab1 {[%clk 0:02:52]}  Rg8 {[%clk 0:02:25]} 18. Bh7 {[%clk 0:02:51]}  Rh8 {[%clk 0:02:25]} 19. Bd3 {[%clk 0:02:50]}  Rg8 {[%clk 0:02:26]} 20. Nh2 {[%clk 0:02:35]}  Rh8 {[%clk 0:01:44]} 21. Ng4 {[%clk 0:02:22]}  Nf5 {[%clk 0:01:43]} 22. Bxf5 {[%clk 0:02:13]}  exf5 {[%clk 0:01:42]} 23. Ne3 {[%clk 0:02:04]}  Qd7 {[%clk 0:01:26]} 24. Qf4 {[%clk 0:01:52]}  Be7 {[%clk 0:01:25]} 25. Nxf5 {[%clk 0:01:40]}  Bg5 {[%clk 0:01:14]} 26. Qg4 {[%clk 0:01:32]}  Kd8 {[%clk 0:00:39]} 27. Bxg5+ {[%clk 0:00:54]}  hxg5 {[%clk 0:00:40]} 28. Qxg5+ {[%clk 0:00:52]}  Kc7 {[%clk 0:00:40]} 29. Nd6 {[%clk 0:00:46]}  Rb8 {[%clk 0:00:41]} 30. Rec1 {[%clk 0:00:36]}  f6 {[%clk 0:00:38]} 31. Qg6 {[%clk 0:00:13]}  fxe5 {[%clk 0:00:28]} 32. Nf5 {[%clk 0:00:08]}  Rhg8 {[%clk 0:00:10]} 33. a4 {[%clk 0:00:08]}  Rbf8 {[%clk 0:00:10]} 34. Ne3 {[%clk 0:00:05]}  Rf6 {[%clk 0:00:10]} 35. Qg3 {[%clk 0:00:05]}  Kb8 {[%clk 0:00:06]} 36. Rc5 {[%clk 0:00:03]}  d4 {[%clk 0:00:05]} 37. Nc4 {[%clk 0:00:03]}  Ka8 {[%clk 0:00:04]} 38. Nxe5 {[%clk 0:00:03]}  Nxe5 {[%clk 0:00:04]} 39. Qxe5 {[%clk 0:00:04]}  Re8 {[%clk 0:00:04]} 40. Rc7 {[%clk 0:00:02]}  Rxe5 {[%clk 0:00:03]} 41. Rxd7 {[%clk 0:00:03]}  b6 {[%clk 0:00:02]} 42. Rc1 {[%clk 0:00:03]}  Rc5 {[%clk 0:00:02]} 43. Re1 {[%clk 0:00:03]}  Kb8 {[%clk 0:00:02]} 44. Re8+ {[%clk 0:00:03]}  Rc8 {[%clk 0:00:03]} 45. Ree7 {[%clk 0:00:03]}  Rc1+ {[%clk 0:00:03]} 46. Kh2 {[%clk 0:00:04]}  Rxf2 {[%clk 0:00:03]} 47. Rxg7 {[%clk 0:00:03]}  b5 {[%clk 0:00:02]} 48. axb5 {[%clk 0:00:03]}  axb5 {[%clk 0:00:03]} 49. h6 {[%clk 0:00:04]}  Rf6 {[%clk 0:00:02]} 50. h7 {[%clk 0:00:04]}  Rh6+ {[%clk 0:00:02]} 51. Kg3 {[%clk 0:00:05]}  Rc8 {[%clk 0:00:03]} 52. Rg8 {[%clk 0:00:04]}  b4 {[%clk 0:00:02]} 53. Rxc8+ {[%clk 0:00:04]}  Kxc8 {[%clk 0:00:02]} 54. Rg7 {[%clk 0:00:04]}  b3 {[%clk 0:00:03]} 55. Rg8+ {[%clk 0:00:04]}  Kc7 {[%clk 0:00:03]} 56. h8=Q {[%clk 0:00:05]}  Rxh8 {[%clk 0:00:04]} 57. Rxh8 {[%clk 0:00:06]}  b2 {[%clk 0:00:04]} 58. Rh1 {[%clk 0:00:06]}  Kc6 {[%clk 0:00:05]} 59. Rb1 {[%clk 0:00:06]}  Kc5 {[%clk 0:00:05]} 60. Rxb2 {[%clk 0:00:07]}  Kc4 {[%clk 0:00:05]} 61. Kf3 {[%clk 0:00:07]}  Kc3 {[%clk 0:00:06]} 62. Rb8 {[%clk 0:00:07]}  d3 {[%clk 0:00:07]} 63. Ke3 {[%clk 0:00:07]}  d2 {[%clk 0:00:06]} 64. Rc8+ {[%clk 0:00:08]} 1-0


[Site "https://www.chess.com"]

[Event "Titled Tuesday Blitz July 11 Early 2023"]
[White "Grandelius, Nils"]
[Black "Lavrik, Dmitry"]
[WhiteFideId "1710400"]
[BlackFideId "24113190"]
[WhiteElo "2865"]
[BlackElo "2685"]
[Result "1-0"]
[Round "8"]
[TimeControl "180+2"]
[Date "2023.07.11"]
[WhiteClock "0:01:05"]
[BlackClock "0:00:00"]
[Board "24"]

1. c4 {[%clk 0:03:00]}  c5 {[%clk 0:02:58]} 2. Nf3 {[%clk 0:03:00]}  g6 {[%clk 0:02:58]} 3. e3 {[%clk 0:02:58]}  Bg7 {[%clk 0:02:56]} 4. d4 {[%clk 0:02:55]}  cxd4 {[%clk 0:02:55]} 5. exd4 {[%clk 0:02:55]}  Nf6 {[%clk 0:02:47]} 6. Nc3 {[%clk 0:02:51]}  d5 {[%clk 0:02:47]} 7. c5 {[%clk 0:02:40]}  O-O {[%clk 0:02:42]} 8. h3 {[%clk 0:02:39]}  Nc6 {[%clk 0:02:38]} 9. Bb5 {[%clk 0:02:39]}  Ne4 {[%clk 0:02:36]} 10. O-O {[%clk 0:02:37]}  Bf5 {[%clk 0:02:25]} 11. Ne2 {[%clk 0:02:28]}  h6 {[%clk 0:02:02]} 12. a3 {[%clk 0:02:20]}  g5 {[%clk 0:02:02]} 13. Be3 {[%clk 0:02:15]}  Bg6 {[%clk 0:02:01]} 14. Bxc6 {[%clk 0:02:04]}  bxc6 {[%clk 0:02:00]} 15. Ne5 {[%clk 0:02:05]}  Qc7 {[%clk 0:01:42]} 16. f3 {[%clk 0:01:58]}  Nf6 {[%clk 0:01:28]} 17. b4 {[%clk 0:01:30]}  Nd7 {[%clk 0:01:18]} 18. Nxg6 {[%clk 0:01:23]}  fxg6 {[%clk 0:01:19]} 19. f4 {[%clk 0:01:23]}  gxf4 {[%clk 0:01:02]} 20. Nxf4 {[%clk 0:01:24]}  Rf6 {[%clk 0:01:03]} 21. Qg4 {[%clk 0:01:24]}  Nf8 {[%clk 0:00:55]} 22. Nd3 {[%clk 0:01:19]}  h5 {[%clk 0:00:50]} 23. Qe2 {[%clk 0:01:19]}  Re8 {[%clk 0:00:06]} 24. Bf4 {[%clk 0:01:16]}  Qc8 {[%clk 0:00:05]} 25. Be5 {[%clk 0:01:16]}  Nh7 {[%clk 0:00:02]} 26. Bxf6 {[%clk 0:01:15]}  exf6 {[%clk 0:00:03]} 27. Qc2 {[%clk 0:01:10]}  Ng5 {[%clk 0:00:04]} 28. Nf4 {[%clk 0:01:11]}  Re4 {[%clk 0:00:03]} 29. Nxg6 {[%clk 0:01:11]}  Nxh3+ {[%clk 0:00:04]} 30. gxh3 {[%clk 0:01:05]}  Qxh3 {[%clk 0:00:05]} 31. Nf4 {[%clk 0:01:04]}  Qg3+ {[%clk 0:00:04]} 32. Qg2 {[%clk 0:01:04]}  Qe3+ {[%clk 0:00:00]} 33. Qf2 {[%clk 0:01:05]} 1-0


[Site "https://www.chess.com"]